Workbook

Sheet Room Rate Calculator
C6: Select Room Category | D6: Pool Junior Swim-up Suite Shared round-trip transfers included
C8: Select Room Occupancy | D8: 2 Adults + 1 child + 1 Infant
C10: Select Length of Stay | D10: 4 nights
C12: Your Room Rate | D12: ='Rate Table'!E2 -> 2785.23
B15: Important!!
C16: This is an approximate quote. Once you complete your registration you will receive an invoice to review.
C17: Please request upgraded room categories early, as a limited number of these rooms are available.
C18: Shared round-trip transfers are included in the room cost.
A22: Instructions:
B23: Use column D to select room type, occupancy and length of stay. | G23: Excellence Club Junior Suite Oceanfront Shared round-trip transfers included
B24: Use calculate button in column E to get a ballpark cost estimate. | G24: Excellence Club Pool Junior Swim-Up Suite Shared round-trip transfers included

Sheet CALC1 (hidden)
C4: Room Category | D4: Room Occupancy | E4: Length of Stay | F4: Room Rate
C5: Pool Family Suite Shared round-trip transfers included | D5: 1 Adult + 1 Child | E5: 7 nights | F5: ='Rate Table'!E2 -> 2785.23

Sheet Rate Table (hidden)
B2: ='Room Rate Calculator'!D6 -> Pool Junior Swim-up Suite Shared round-trip transfers included | C2: ='Room Rate Calculator'!D8 -> 2 Adults + 1 child + 1 Infant | D2: ='Room Rate Calculator'!D10 -> 4 nights | E2: =IF(B2=Z4,B6,IF(B2=Z5,C6,IF(B2=Z6,D6,IF(B2=Z7,E6,IF(B2=Z8,F6,IF(B2=Z9,G6,IF(B4=AA4,B7,IF(B4=AA5,C7,"N/A")))))))) -> 2785.23 | H2: =IF(AND(B6=E15,F2=P13,G2=F15),P15,IF(AND(B6=E15,F2=P13,G2=F16),P16,IF(AND(B6=E15,F2=P13,G2=F17),P17,IF(AND(B6=E15,F2=P13,G2=F18),P18,IF(AND(B6=E15,F2=P13,G2=F19),P19,IF(AND(B6=E15,F2=Q13,G2=F15),Q15,IF(AND(B6=E15,F2=Q13,G2=F16),Q16,IF(AND(B6=E15,F2=Q13,G2=F17),Q17,IF(AND(B6=E15,F2=Q13,G2=F18),Q18,IF(AND(B6=E15,F2=Q13,G2=F19),Q19,IF(AND(B6=E15,F2=R13,G2=F15),R15,IF(AND(B6=E15,F2=R13,G2=F16),R16,IF(AND(B6=E15,F2=R13,G2=F17),R17,IF(AND(B6=E15,F2=R13,G2=F18),R18,IF(AND(B6=E15,F2=R13,G2=F19),R19,IF(AND(B6=E15,F2=S13,G2=F15),S15,IF(AND(B6=E15,F2=S13,G2=F16),S16,IF(AND(B6=E15,F2=S13,G2=F17),S17,IF(AND(B6=E15,F2=S13,G2=F18),S18,IF(AND(B6=E15,F2=S13,G2=F19),S19,IF(AND(B6=E15,F2=T13,G2=F15),T15,IF(AND(B6=E15,F2=T13,G2=F16),T16,IF(AND(B6=E15,F2=T13,G2=F17),T17,IF(AND(B6=E15,F2=T13,G2=F18),T18,IF(AND(B6=E15,F2=T13,G2=F19),T19,IF(AND(B6=E15,F2=U13,G2=F15),U15,IF(AND(B6=E15,F2=U13,G2=F16),U16,IF(AND(B6=E15,F2=U13,G2=F17),U17,IF(AND(B6=E15,F2=U13,G2=F18),U18,IF(AND(B6=E15,F2=U13,G2=F19),U19,IF(AND(B6=E15,F2=V13,G2=F15),V15,IF(AND(B6=E15,F2=V13,G2=F16),V16,IF(AND(B6=E15,F2=V13,G2=F17),V17,IF(AND(B6=E15,F2=V13,G2=F18),V18,IF(AND(B6=E15,F2=V13,G2=F19),V19,IF(AND(B6=E15,F2=W13,G2=F15),W15,IF(AND(B6=E15,F2=W13,G2=F16),W16,IF(AND(B6=E15,F2=W13,G2=F17),W17,IF(AND(B6=E15,F2=W13,G2=F18),W18,IF(AND(B6=E15,F2=W13,G2=F19),W19,IF(AND(B6=E15,F2=X13,G2=F15),X15,IF(AND(B6=E15,F2=X13,G2=F16),X16,IF(AND(B6=E15,F2=X13,G2=F17),X17,IF(AND(B6=E15,F2=X13,G2=F18),X18,IF(AND(B6=E15,F2=X13,G2=F19),X19,0))))))))))))))))))))))))))))))))))))))))))))) -> 0 | I2: =IF(AND(F2=F15,G2=Q13,H2=G15),Q15,IF(AND(F2=F15,G2=Q13,H2=G16),Q16,IF(AND(F2=F15,G2=Q13,H2=G17),Q17,IF(AND(F2=F15,G2=Q13,H2=G18),Q18,IF(AND(F2=F15,G2=Q13,H2=G19),Q19,IF(AND(F2=F15,G2=R13,H2=G15),R15,IF(AND(F2=F15,G2=R13,H2=G16),R16,IF(AND(F2=F15,G2=R13,H2=G17),R17,IF(AND(F2=F15,G2=R13,H2=G18),R18,IF(AND(F2=F15,G2=R13,H2=G19),R19,IF(AND(F2=F15,G2=S13,H2=G15),S15,IF(AND(F2=F15,G2=S13,H2=G16),S16,IF(AND(F2=F15,G2=S13,H2=G17),S17,IF(AND(F2=F15,G2=S13,H2=G18),S18,IF(AND(F2=F15,G2=S13,H2=G19),S19,IF(AND(F2=F15,G2=T13,H2=G15),T15,IF(AND(F2=F15,G2=T13,H2=G16),T16,IF(AND(F2=F15,G2=T13,H2=G17),T17,IF(AND(F2=F15,G2=T13,H2=G18),T18,IF(AND(F2=F15,G2=T13,H2=G19),T19,IF(AND(F2=F15,G2=U13,H2=G15),U15,IF(AND(F2=F15,G2=U13,H2=G16),U16,IF(AND(F2=F15,G2=U13,H2=G17),U17,IF(AND(F2=F15,G2=U13,H2=G18),U18,IF(AND(F2=F15,G2=U13,H2=G19),U19,IF(AND(F2=F15,G2=V13,H2=G15),V15,IF(AND(F2=F15,G2=V13,H2=G16),V16,IF(AND(F2=F15,G2=V13,H2=G17),V17,IF(AND(F2=F15,G2=V13,H2=G18),V18,IF(AND(F2=F15,G2=V13,H2=G19),V19,IF(AND(F2=F15,G2=W13,H2=G15),W15,IF(AND(F2=F15,G2=W13,H2=G16),W16,IF(AND(F2=F15,G2=W13,H2=G17),W17,IF(AND(F2=F15,G2=W13,H2=G18),W18,IF(AND(F2=F15,G2=W13,H2=G19),W19,IF(AND(F2=F15,G2=X13,H2=G15),X15,IF(AND(F2=F15,G2=X13,H2=G16),X16,IF(AND(F2=F15,G2=X13,H2=G17),X17,IF(AND(F2=F15,G2=X13,H2=G18),X18,IF(AND(F2=F15,G2=X13,H2=G19),X19,IF(AND(F2=F15,G2=Y13,H2=G15),Y15,IF(AND(F2=F15,G2=Y13,H2=G16),Y16,IF(AND(F2=F15,G2=Y13,H2=G17),Y17,IF(AND(F2=F15,G2=Y13,H2=G18),Y18,IF(AND(F2=F15,G2=Y13,H2=G19),Y19,0))))))))))))))))))))))))))))))))))))))))))))) -> 0 | J2: =IF(AND(G2=G15,H2=R13,I2=H15),R15,IF(AND(G2=G15,H2=R13,I2=H16),R16,IF(AND(G2=G15,H2=R13,I2=H17),R17,IF(AND(G2=G15,H2=R13,I2=H18),R18,IF(AND(G2=G15,H2=R13,I2=H19),R19,IF(AND(G2=G15,H2=S13,I2=H15),S15,IF(AND(G2=G15,H2=S13,I2=H16),S16,IF(AND(G2=G15,H2=S13,I2=H17),S17,IF(AND(G2=G15,H2=S13,I2=H18),S18,IF(AND(G2=G15,H2=S13,I2=H19),S19,IF(AND(G2=G15,H2=T13,I2=H15),T15,IF(AND(G2=G15,H2=T13,I2=H16),T16,IF(AND(G2=G15,H2=T13,I2=H17),T17,IF(AND(G2=G15,H2=T13,I2=H18),T18,IF(AND(G2=G15,H2=T13,I2=H19),T19,IF(AND(G2=G15,H2=U13,I2=H15),U15,IF(AND(G2=G15,H2=U13,I2=H16),U16,IF(AND(G2=G15,H2=U13,I2=H17),U17,IF(AND(G2=G15,H2=U13,I2=H18),U18,IF(AND(G2=G15,H2=U13,I2=H19),U19,IF(AND(G2=G15,H2=V13,I2=H15),V15,IF(AND(G2=G15,H2=V13,I2=H16),V16,IF(AND(G2=G15,H2=V13,I2=H17),V17,IF(AND(G2=G15,H2=V13,I2=H18),V18,IF(AND(G2=G15,H2=V13,I2=H19),V19,IF(AND(G2=G15,H2=W13,I2=H15),W15,IF(AND(G2=G15,H2=W13,I2=H16),W16,IF(AND(G2=G15,H2=W13,I2=H17),W17,IF(AND(G2=G15,H2=W13,I2=H18),W18,IF(AND(G2=G15,H2=W13,I2=H19),W19,IF(AND(G2=G15,H2=X13,I2=H15),X15,IF(AND(G2=G15,H2=X13,I2=H16),X16,IF(AND(G2=G15,H2=X13,I2=H17),X17,IF(AND(G2=G15,H2=X13,I2=H18),X18,IF(AND(G2=G15,H2=X13,I2=H19),X19,IF(AND(G2=G15,H2=Y13,I2=H15),Y15,IF(AND(G2=G15,H2=Y13,I2=H16),Y16,IF(AND(G2=G15,H2=Y13,I2=H17),Y17,IF(AND(G2=G15,H2=Y13,I2=H18),Y18,IF(AND(G2=G15,H2=Y13,I2=H19),Y19,IF(AND(G2=G15,H2=Z13,I2=H15),Z15,IF(AND(G2=G15,H2=Z13,I2=H16),Z16,IF(AND(G2=G15,H2=Z13,I2=H17),Z17,IF(AND(G2=G15,H2=Z13,I2=H18),Z18,IF(AND(G2=G15,H2=Z13,I2=H19),Z19,0))))))))))))))))))))))))))))))))))))))))))))) -> 0 | K2: =IF(AND(H2=H15,I2=S13,J2=I15),S15,IF(AND(H2=H15,I2=S13,J2=I16),S16,IF(AND(H2=H15,I2=S13,J2=I17),S17,IF(AND(H2=H15,I2=S13,J2=I18),S18,IF(AND(H2=H15,I2=S13,J2=I19),S19,IF(AND(H2=H15,I2=T13,J2=I15),T15,IF(AND(H2=H15,I2=T13,J2=I16),T16,IF(AND(H2=H15,I2=T13,J2=I17),T17,IF(AND(H2=H15,I2=T13,J2=I18),T18,IF(AND(H2=H15,I2=T13,J2=I19),T19,IF(AND(H2=H15,I2=U13,J2=I15),U15,IF(AND(H2=H15,I2=U13,J2=I16),U16,IF(AND(H2=H15,I2=U13,J2=I17),U17,IF(AND(H2=H15,I2=U13,J2=I18),U18,IF(AND(H2=H15,I2=U13,J2=I19),U19,IF(AND(H2=H15,I2=V13,J2=I15),V15,IF(AND(H2=H15,I2=V13,J2=I16),V16,IF(AND(H2=H15,I2=V13,J2=I17),V17,IF(AND(H2=H15,I2=V13,J2=I18),V18,IF(AND(H2=H15,I2=V13,J2=I19),V19,IF(AND(H2=H15,I2=W13,J2=I15),W15,IF(AND(H2=H15,I2=W13,J2=I16),W16,IF(AND(H2=H15,I2=W13,J2=I17),W17,IF(AND(H2=H15,I2=W13,J2=I18),W18,IF(AND(H2=H15,I2=W13,J2=I19),W19,IF(AND(H2=H15,I2=X13,J2=I15),X15,IF(AND(H2=H15,I2=X13,J2=I16),X16,IF(AND(H2=H15,I2=X13,J2=I17),X17,IF(AND(H2=H15,I2=X13,J2=I18),X18,IF(AND(H2=H15,I2=X13,J2=I19),X19,IF(AND(H2=H15,I2=Y13,J2=I15),Y15,IF(AND(H2=H15,I2=Y13,J2=I16),Y16,IF(AND(H2=H15,I2=Y13,J2=I17),Y17,IF(AND(H2=H15,I2=Y13,J2=I18),Y18,IF(AND(H2=H15,I2=Y13,J2=I19),Y19,IF(AND(H2=H15,I2=Z13,J2=I15),Z15,IF(AND(H2=H15,I2=Z13,J2=I16),Z16,IF(AND(H2=H15,I2=Z13,J2=I17),Z17,IF(AND(H2=H15,I2=Z13,J2=I18),Z18,IF(AND(H2=H15,I2=Z13,J2=I19),Z19,IF(AND(H2=H15,I2=#REF!,J2=I15),#REF!,IF(AND(H2=H15,I2=#REF!,J2=I16),#REF!,IF(AND(H2=H15,I2=#REF!,J2=I17),#REF!,IF(AND(H2=H15,I2=#REF!,J2=I18),#REF!,IF(AND(H2=H15,I2=#REF!,J2=I19),#REF!,0))))))))))))))))))))))))))))))))))))))))))))) -> 
B4: ='Room Rate Calculator'!D6 -> Pool Junior Swim-up Suite Shared round-trip transfers included | C4: ='Room Rate Calculator'!D8 -> 2 Adults + 1 child + 1 Infant | D4: ='Room Rate Calculator'!D10 -> 4 nights | E4: =IF(B4=AA4,B7,IF(B4=AA5,C7,"N/A")) -> N/A | Z4: Junior Suite Spa or Poolview Shared round-trip transfers included | AA4: Excellence Club Junior Suite Oceanfront Shared round-trip transfers included
Z5: Junior Suite with Private Pool Shared round-trip transfers included | AA5: Excellence Club Pool Junior Swim-Up Suite Shared round-trip transfers included
B6: =IF(AND(B2=B15,C2=M13,D2=C15),M15,IF(AND(B2=B15,C2=M13,D2=C16),M16,IF(AND(B2=B15,C2=M13,D2=C17),M17,IF(AND(B2=B15,C2=M13,D2=C18),M18,IF(AND(B2=B15,C2=M13,D2=C19),M19,IF(AND(B2=B15,C2=N13,D2=C15),N15,IF(AND(B2=B15,C2=N13,D2=C16),N16,IF(AND(B2=B15,C2=N13,D2=C17),N17,IF(AND(B2=B15,C2=N13,D2=C18),N18,IF(AND(B2=B15,C2=N13,D2=C19),N19,IF(AND(B2=B15,C2=O13,D2=C15),O15,IF(AND(B2=B15,C2=O13,D2=C16),O16,IF(AND(B2=B15,C2=O13,D2=C17),O17,IF(AND(B2=B15,C2=O13,D2=C18),O18,IF(AND(B2=B15,C2=O13,D2=C19),O19,IF(AND(B2=B15,C2=P13,D2=C15),P15,IF(AND(B2=B15,C2=P13,D2=C16),P16,IF(AND(B2=B15,C2=P13,D2=C17),P17,IF(AND(B2=B15,C2=P13,D2=C18),P18,IF(AND(B2=B15,C2=P13,D2=C19),P19,IF(AND(B2=B15,C2=Q13,D2=C15),Q15,IF(AND(B2=B15,C2=Q13,D2=C16),Q16,IF(AND(B2=B15,C2=Q13,D2=C17),Q17,IF(AND(B2=B15,C2=Q13,D2=C18),Q18,IF(AND(B2=B15,C2=Q13,D2=C19),Q19,IF(AND(B2=B15,C2=R13,D2=C15),R15,IF(AND(B2=B15,C2=R13,D2=C16),R16,IF(AND(B2=B15,C2=R13,D2=C17),R17,IF(AND(B2=B15,C2=R13,D2=C18),R18,IF(AND(B2=B15,C2=R13,D2=C19),R19,IF(AND(B2=B15,C2=S13,D2=C15),S15,IF(AND(B2=B15,C2=S13,D2=C16),S16,IF(AND(B2=B15,C2=S13,D2=C17),S17,IF(AND(B2=B15,C2=S13,D2=C18),S18,IF(AND(B2=B15,C2=S13,D2=C19),S19,IF(AND(B2=B15,C2=T13,D2=C15),T15,IF(AND(B2=B15,C2=T13,D2=C16),T16,IF(AND(B2=B15,C2=T13,D2=C17),T17,IF(AND(B2=B15,C2=T13,D2=C18),T18,IF(AND(B2=B15,C2=T13,D2=C19),T19,IF(AND(B2=B15,C2=U13,D2=C15),U15,IF(AND(B2=B15,C2=U13,D2=C16),U16,IF(AND(B2=B15,C2=U13,D2=C17),U17,IF(AND(B2=B15,C2=U13,D2=C18),U18,IF(AND(B2=B15,C2=U13,D2=C19),U19,0))))))))))))))))))))))))))))))))))))))))))))) -> 0 | C6: =IF(AND(B2=B20,C2=M13,D2=C20),M20,IF(AND(B2=B20,C2=M13,D2=C21),M21,IF(AND(B2=B20,C2=M13,D2=C22),M22,IF(AND(B2=B20,C2=M13,D2=C23),M23,IF(AND(B2=B20,C2=M13,D2=C24),M24,IF(AND(B2=B20,C2=N13,D2=C20),N20,IF(AND(B2=B20,C2=N13,D2=C21),N21,IF(AND(B2=B20,C2=N13,D2=C22),N22,IF(AND(B2=B20,C2=N13,D2=C23),N23,IF(AND(B2=B20,C2=N13,D2=C24),N24,IF(AND(B2=B20,C2=O13,D2=C20),O20,IF(AND(B2=B20,C2=O13,D2=C21),O21,IF(AND(B2=B20,C2=O13,D2=C22),O22,IF(AND(B2=B20,C2=O13,D2=C23),O23,IF(AND(B2=B20,C2=O13,D2=C24),O24,IF(AND(B2=B20,C2=P13,D2=C20),P20,IF(AND(B2=B20,C2=P13,D2=C21),P21,IF(AND(B2=B20,C2=P13,D2=C22),P22,IF(AND(B2=B20,C2=P13,D2=C23),P23,IF(AND(B2=B20,C2=P13,D2=C24),P24,IF(AND(B2=B20,C2=Q13,D2=C20),Q20,IF(AND(B2=B20,C2=Q13,D2=C21),Q21,IF(AND(B2=B20,C2=Q13,D2=C22),Q22,IF(AND(B2=B20,C2=Q13,D2=C23),Q23,IF(AND(B2=B20,C2=Q13,D2=C24),Q24,IF(AND(B2=B20,C2=R13,D2=C20),R20,IF(AND(B2=B20,C2=R13,D2=C21),R21,IF(AND(B2=B20,C2=R13,D2=C22),R22,IF(AND(B2=B20,C2=R13,D2=C23),R23,IF(AND(B2=B20,C2=R13,D2=C24),R24,IF(AND(B2=B20,C2=S13,D2=C20),S20,IF(AND(B2=B20,C2=S13,D2=C21),S21,IF(AND(B2=B20,C2=S13,D2=C22),S22,IF(AND(B2=B20,C2=S13,D2=C23),S23,IF(AND(B2=B20,C2=S13,D2=C24),S24,IF(AND(B2=B20,C2=T13,D2=C20),T20,IF(AND(B2=B20,C2=T13,D2=C21),T21,IF(AND(B2=B20,C2=T13,D2=C22),T22,IF(AND(B2=B20,C2=T13,D2=C23),T23,IF(AND(B2=B20,C2=T13,D2=C24),T24,IF(AND(B2=B20,C2=U13,D2=C20),U20,IF(AND(B2=B20,C2=U13,D2=C21),U21,IF(AND(B2=B20,C2=U13,D2=C22),U22,IF(AND(B2=B20,C2=U13,D2=C23),U23,IF(AND(B2=B20,C2=U13,D2=C24),U24,0))))))))))))))))))))))))))))))))))))))))))))) -> 0 | D6: =IF(AND(B2=B25,C2=M13,D2=C25),M25,IF(AND(B2=B25,C2=M13,D2=C26),M26,IF(AND(B2=B25,C2=M13,D2=C27),M27,IF(AND(B2=B25,C2=M13,D2=C28),M28,IF(AND(B2=B25,C2=M13,D2=C29),M29,IF(AND(B2=B25,C2=N13,D2=C25),N25,IF(AND(B2=B25,C2=N13,D2=C26),N26,IF(AND(B2=B25,C2=N13,D2=C27),N27,IF(AND(B2=B25,C2=N13,D2=C28),N28,IF(AND(B2=B25,C2=N13,D2=C29),N29,IF(AND(B2=B25,C2=O13,D2=C25),O25,IF(AND(B2=B25,C2=O13,D2=C26),O26,IF(AND(B2=B25,C2=O13,D2=C27),O27,IF(AND(B2=B25,C2=O13,D2=C28),O28,IF(AND(B2=B25,C2=O13,D2=C29),O29,IF(AND(B2=B25,C2=P13,D2=C25),P25,IF(AND(B2=B25,C2=P13,D2=C26),P26,IF(AND(B2=B25,C2=P13,D2=C27),P27,IF(AND(B2=B25,C2=P13,D2=C28),P28,IF(AND(B2=B25,C2=P13,D2=C29),P29,IF(AND(B2=B25,C2=Q13,D2=C25),Q25,IF(AND(B2=B25,C2=Q13,D2=C26),Q26,IF(AND(B2=B25,C2=Q13,D2=C27),Q27,IF(AND(B2=B25,C2=Q13,D2=C28),Q28,IF(AND(B2=B25,C2=Q13,D2=C29),Q29,IF(AND(B2=B25,C2=R13,D2=C25),R25,IF(AND(B2=B25,C2=R13,D2=C26),R26,IF(AND(B2=B25,C2=R13,D2=C27),R27,IF(AND(B2=B25,C2=R13,D2=C28),R28,IF(AND(B2=B25,C2=R13,D2=C29),R29,IF(AND(B2=B25,C2=S13,D2=C25),S25,IF(AND(B2=B25,C2=S13,D2=C26),S26,IF(AND(B2=B25,C2=S13,D2=C27),S27,IF(AND(B2=B25,C2=S13,D2=C28),S28,IF(AND(B2=B25,C2=S13,D2=C29),S29,IF(AND(B2=B25,C2=T13,D2=C25),T25,IF(AND(B2=B25,C2=T13,D2=C26),T26,IF(AND(B2=B25,C2=T13,D2=C27),T27,IF(AND(B2=B25,C2=T13,D2=C28),T28,IF(AND(B2=B25,C2=T13,D2=C29),T29,IF(AND(B2=B25,C2=U13,D2=C25),U25,IF(AND(B2=B25,C2=U13,D2=C26),U26,IF(AND(B2=B25,C2=U13,D2=C27),U27,IF(AND(B2=B25,C2=U13,D2=C28),U28,IF(AND(B2=B25,C2=U13,D2=C29),U29,0))))))))))))))))))))))))))))))))))))))))))))) -> 2785.23 | E6: =IF(AND(B2=B30,C2=M13,D2=C30),M30,IF(AND(B2=B30,C2=M13,D2=C31),M31,IF(AND(B2=B30,C2=M13,D2=C32),M32,IF(AND(B2=B30,C2=M13,D2=C33),M33,IF(AND(B2=B30,C2=M13,D2=C34),M34,IF(AND(B2=B30,C2=N13,D2=C30),N30,IF(AND(B2=B30,C2=N13,D2=C31),N31,IF(AND(B2=B30,C2=N13,D2=C32),N32,IF(AND(B2=B30,C2=N13,D2=C33),N33,IF(AND(B2=B30,C2=N13,D2=C34),N34,IF(AND(B2=B30,C2=O13,D2=C30),O30,IF(AND(B2=B30,C2=O13,D2=C31),O31,IF(AND(B2=B30,C2=O13,D2=C32),O32,IF(AND(B2=B30,C2=O13,D2=C33),O33,IF(AND(B2=B30,C2=O13,D2=C34),O34,IF(AND(B2=B30,C2=P13,D2=C30),P30,IF(AND(B2=B30,C2=P13,D2=C31),P31,IF(AND(B2=B30,C2=P13,D2=C32),P32,IF(AND(B2=B30,C2=P13,D2=C33),P33,IF(AND(B2=B30,C2=P13,D2=C34),P34,IF(AND(B2=B30,C2=Q13,D2=C30),Q30,IF(AND(B2=B30,C2=Q13,D2=C31),Q31,IF(AND(B2=B30,C2=Q13,D2=C32),Q32,IF(AND(B2=B30,C2=Q13,D2=C33),Q33,IF(AND(B2=B30,C2=Q13,D2=C34),Q34,IF(AND(B2=B30,C2=R13,D2=C30),R30,IF(AND(B2=B30,C2=R13,D2=C31),R31,IF(AND(B2=B30,C2=R13,D2=C32),R32,IF(AND(B2=B30,C2=R13,D2=C33),R33,IF(AND(B2=B30,C2=R13,D2=C34),R34,IF(AND(B2=B30,C2=S13,D2=C30),S30,IF(AND(B2=B30,C2=S13,D2=C31),S31,IF(AND(B2=B30,C2=S13,D2=C32),S32,IF(AND(B2=B30,C2=S13,D2=C33),S33,IF(AND(B2=B30,C2=S13,D2=C34),S34,IF(AND(B2=B30,C2=T13,D2=C30),T30,IF(AND(B2=B30,C2=T13,D2=C31),T31,IF(AND(B2=B30,C2=T13,D2=C32),T32,IF(AND(B2=B30,C2=T13,D2=C33),T33,IF(AND(B2=B30,C2=T13,D2=C34),T34,IF(AND(B2=B30,C2=U13,D2=C30),U30,IF(AND(B2=B30,C2=U13,D2=C31),U31,IF(AND(B2=B30,C2=U13,D2=C32),U32,IF(AND(B2=B30,C2=U13,D2=C33),U33,IF(AND(B2=B30,C2=U13,D2=C34),U34,0))))))))))))))))))))))))))))))))))))))))))))) -> 0 | F6: =IF(AND(B2=B35,C2=M13,D2=C35),M35,IF(AND(B2=B35,C2=M13,D2=C36),M36,IF(AND(B2=B35,C2=M13,D2=C37),M37,IF(AND(B2=B35,C2=M13,D2=C38),M38,IF(AND(B2=B35,C2=M13,D2=C39),M39,IF(AND(B2=B35,C2=N13,D2=C35),N35,IF(AND(B2=B35,C2=N13,D2=C36),N36,IF(AND(B2=B35,C2=N13,D2=C37),N37,IF(AND(B2=B35,C2=N13,D2=C38),N38,IF(AND(B2=B35,C2=N13,D2=C39),N39,IF(AND(B2=B35,C2=O13,D2=C35),O35,IF(AND(B2=B35,C2=O13,D2=C36),O36,IF(AND(B2=B35,C2=O13,D2=C37),O37,IF(AND(B2=B35,C2=O13,D2=C38),O38,IF(AND(B2=B35,C2=O13,D2=C39),O39,IF(AND(B2=B35,C2=P13,D2=C35),P35,IF(AND(B2=B35,C2=P13,D2=C36),P36,IF(AND(B2=B35,C2=P13,D2=C37),P37,IF(AND(B2=B35,C2=P13,D2=C38),P38,IF(AND(B2=B35,C2=P13,D2=C39),P39,IF(AND(B2=B35,C2=Q13,D2=C35),Q35,IF(AND(B2=B35,C2=Q13,D2=C36),Q36,IF(AND(B2=B35,C2=Q13,D2=C37),Q37,IF(AND(B2=B35,C2=Q13,D2=C38),Q38,IF(AND(B2=B35,C2=Q13,D2=C39),Q39,IF(AND(B2=B35,C2=R13,D2=C35),R35,IF(AND(B2=B35,C2=R13,D2=C36),R36,IF(AND(B2=B35,C2=R13,D2=C37),R37,IF(AND(B2=B35,C2=R13,D2=C38),R38,IF(AND(B2=B35,C2=R13,D2=C39),R39,IF(AND(B2=B35,C2=S13,D2=C35),S35,IF(AND(B2=B35,C2=S13,D2=C36),S36,IF(AND(B2=B35,C2=S13,D2=C37),S37,IF(AND(B2=B35,C2=S13,D2=C38),S38,IF(AND(B2=B35,C2=S13,D2=C39),S39,IF(AND(B2=B35,C2=T13,D2=C35),T35,IF(AND(B2=B35,C2=T13,D2=C36),T36,IF(AND(B2=B35,C2=T13,D2=C37),T37,IF(AND(B2=B35,C2=T13,D2=C38),T38,IF(AND(B2=B35,C2=T13,D2=C39),T39,IF(AND(B2=B35,C2=U13,D2=C35),U35,IF(AND(B2=B35,C2=U13,D2=C36),U36,IF(AND(B2=B35,C2=U13,D2=C37),U37,IF(AND(B2=B35,C2=U13,D2=C38),U38,IF(AND(B2=B35,C2=U13,D2=C39),U39,0))))))))))))))))))))))))))))))))))))))))))))) -> 0 | G6: =IF(AND(B2=B40,C2=M13,D2=C40),M40,IF(AND(B2=B40,C2=M13,D2=C41),M41,IF(AND(B2=B40,C2=M13,D2=C42),M42,IF(AND(B2=B40,C2=M13,D2=C43),M43,IF(AND(B2=B40,C2=M13,D2=C44),M44,IF(AND(B2=B40,C2=N13,D2=C40),N40,IF(AND(B2=B40,C2=N13,D2=C41),N41,IF(AND(B2=B40,C2=N13,D2=C42),N42,IF(AND(B2=B40,C2=N13,D2=C43),N43,IF(AND(B2=B40,C2=N13,D2=C44),N44,IF(AND(B2=B40,C2=O13,D2=C40),O40,IF(AND(B2=B40,C2=O13,D2=C41),O41,IF(AND(B2=B40,C2=O13,D2=C42),O42,IF(AND(B2=B40,C2=O13,D2=C43),O43,IF(AND(B2=B40,C2=O13,D2=C44),O44,IF(AND(B2=B40,C2=P13,D2=C40),P40,IF(AND(B2=B40,C2=P13,D2=C41),P41,IF(AND(B2=B40,C2=P13,D2=C42),P42,IF(AND(B2=B40,C2=P13,D2=C43),P43,IF(AND(B2=B40,C2=P13,D2=C44),P44,IF(AND(B2=B40,C2=Q13,D2=C40),Q40,IF(AND(B2=B40,C2=Q13,D2=C41),Q41,IF(AND(B2=B40,C2=Q13,D2=C42),Q42,IF(AND(B2=B40,C2=Q13,D2=C43),Q43,IF(AND(B2=B40,C2=Q13,D2=C44),Q44,IF(AND(B2=B40,C2=R13,D2=C40),R40,IF(AND(B2=B40,C2=R13,D2=C41),R41,IF(AND(B2=B40,C2=R13,D2=C42),R42,IF(AND(B2=B40,C2=R13,D2=C43),R43,IF(AND(B2=B40,C2=R13,D2=C44),R44,IF(AND(B2=B40,C2=S13,D2=C40),S40,IF(AND(B2=B40,C2=S13,D2=C41),S41,IF(AND(B2=B40,C2=S13,D2=C42),S42,IF(AND(B2=B40,C2=S13,D2=C43),S43,IF(AND(B2=B40,C2=S13,D2=C44),S44,IF(AND(B2=B40,C2=T13,D2=C40),T40,IF(AND(B2=B40,C2=T13,D2=C41),T41,IF(AND(B2=B40,C2=T13,D2=C42),T42,IF(AND(B2=B40,C2=T13,D2=C43),T43,IF(AND(B2=B40,C2=T13,D2=C44),T44,IF(AND(B2=B40,C2=U13,D2=C40),U40,IF(AND(B2=B40,C2=U13,D2=C41),U41,IF(AND(B2=B40,C2=U13,D2=C42),U42,IF(AND(B2=B40,C2=U13,D2=C43),U43,IF(AND(B2=B40,C2=U13,D2=C44),U44,0))))))))))))))))))))))))))))))))))))))))))))) -> 0 | Z6: Pool Junior Swim-up Suite Shared round-trip transfers included
B7: =IF(AND(B4=B45,C4=M13,D4=C45),M45,IF(AND(B4=B45,C4=M13,D4=C46),M46,IF(AND(B4=B45,C4=M13,D4=C47),M47,IF(AND(B4=B45,C4=M13,D4=C48),M48,IF(AND(B4=B45,C4=M13,D4=C49),M49,IF(AND(B4=B45,C4=N13,D4=C45),N45,IF(AND(B4=B45,C4=N13,D4=C46),N46,IF(AND(B4=B45,C4=N13,D4=C47),N47,IF(AND(B4=B45,C4=N13,D4=C48),N48,IF(AND(B4=B45,C4=N13,D4=C49),N49,"N/A")))))))))) -> N/A | C7: =IF(AND(B4=B50,C4=M13,D4=C50),M50,IF(AND(B4=B50,C4=M13,D4=C51),M51,IF(AND(B4=B50,C4=M13,D4=C52),M52,IF(AND(B4=B50,C4=M13,D4=C53),M53,IF(AND(B4=B50,C4=M13,D4=C54),M54,IF(AND(B4=B50,C4=N13,D4=C50),N50,IF(AND(B4=B50,C4=N13,D4=C51),N51,IF(AND(B4=B50,C4=N13,D4=C52),N52,IF(AND(B4=B50,C4=N13,D4=C53),N53,IF(AND(B4=B50,C4=N13,D4=C54),N54,"N/A")))))))))) -> N/A | Z7: Family Suite Shared round-trip transfers included
Z8: Two Story Rooftop Terrace Suite with Plunge Pool Shared round-trip transfers included
Z9: Pool Family Suite Shared round-trip transfers included
Z10: Excellence Club Junior Suite Oceanfront Shared round-trip transfers included
Z11: Excellence Club Pool Junior Swim-Up Suite Shared round-trip transfers included
D13: 1 Adult | E13: 2 Adults | F13: 3 Adults | G13: 1 Child (age 4-12) | H13: 1 adult | I13: 2 adults | J13: 3 adults | K13: 1 Child | L13: Infant Flat Rate (age 0-3) | M13: 1 Adult | N13: 2 Adults | O13: 3 Adults | P13: 2 Adults + 1 child + 1 Infant | Q13: 2 Adults + 1 child | R13: 3 Adults + 1 Child | S13: 3 Adults + 1 Infant | T13: 2 Adults + 2 Child | U13: 1 Adult + 1 Child
B14: Room category | C14: Length of Stay | D14: Occupant Rates by Type
B15: Junior Suite Spa or Poolview Shared round-trip transfers included | C15: 3 nights | D15: 1025.81 | E15: 692.87 | F15: 659.58 | G15: 348.84 | H15: 341.9366667 | I15: 230.9566667 | J15: 219.86 | K15: 116.28 | L15: 27 | M15: =D15 -> 1025.81 | N15: =2*E15 -> 1385.74 | O15: =3*F15 -> 1978.74 | P15: =(2*E15)+G15+L15 -> 1761.58 | Q15: =(2*E15)+G15 -> 1734.58 | R15: =(3*F15)+G15 -> 2327.58 | S15: =(3*F15)+L15 -> 2005.74 | T15: =(2*E15)+(2*G15) -> 2083.42 | U15: =2*E15 -> 1385.74
C16: 4 nights | D16: 1358.75 | E16: 914.84 | F16: 870.44 | G16: 456.11 | H16: 339.6875 | I16: 228.71 | J16: 217.61 | K16: 114.0275 | L16: 27 | M16: 1358.75 | N16: 1829.68 | O16: 2611.32 | P16: =(2*E16)+G16+L16 -> 2312.79 | Q16: =(2*E16)+G16 -> 2285.79 | R16: =(3*F16)+G16 -> 3067.43 | S16: =(3*F16)+L16 -> 2638.32 | T16: =(2*E16)+(2*G16) -> 2741.9 | U16: =2*E16 -> 1829.68
C17: 5 nights | D17: 1691.68 | E17: 1136.79 | F17: 1081.3 | G17: 563.4 | H17: 338.336 | I17: 227.358 | J17: 216.26 | K17: 112.68 | L17: 27 | M17: 1691.68 | N17: 2273.58 | O17: 3243.9 | P17: 2863.98 | Q17: 2836.98 | R17: 3807.3 | S17: 3270.9 | T17: 3400.38 | U17: 2273.58
C18: 6 nights | D18: 2024.62 | E18: 1358.74 | F18: 1292.16 | G18: 670.68 | H18: 337.4366667 | I18: 226.4566667 | J18: 215.36 | K18: 111.78 | L18: 27 | M18: 2024.62 | N18: 2717.48 | O18: 3876.48 | P18: 3415.16 | Q18: 3388.16 | R18: 4547.16 | S18: 3903.48 | T18: 4058.84 | U18: 2717.48
C19: 7 nights | D19: 2357.56 | E19: 1580.7 | F19: 1503.02 | G19: 777.95 | H19: 336.7942857 | I19: 225.8142857 | J19: 214.7171429 | K19: 111.1357143 | L19: 27 | M19: 2357.56 | N19: 3161.4 | O19: 4509.06 | P19: 3966.35 | Q19: 3939.35 | R19: 5287.01 | S19: 4536.06 | T19: 4717.3 | U19: 3161.4
B20: Junior Suite with Private Pool Shared round-trip transfers included | C20: 3 nights | D20: 1204.17 | E20: 811.78 | F20: 772.54 | G20: 406.31 | H20: 401.39 | I20: 270.5933333 | J20: 257.5133333 | K20: 135.4366667 | L20: 27 | M20: 1204.17 | N20: 1623.56 | O20: 2317.62 | P20: 2056.87 | Q20: 2029.87 | R20: 2723.93 | S20: 2344.62 | T20: 2436.18 | U20: 1623.56
C21: 4 nights | D21: 1596.56 | E21: 1073.38 | F21: 1021.05 | G21: 532.75 | H21: 399.14 | I21: 268.345 | J21: 255.2625 | K21: 133.1875 | L21: 27 | M21: 1596.56 | N21: 2146.76 | O21: 3063.15 | P21: 2706.51 | Q21: 2679.51 | R21: 3595.9 | S21: 3090.15 | T21: 3212.26 | U21: 2146.76
C22: 5 nights | D22: 1988.95 | E22: 1334.96 | F22: 1269.57 | G22: 659.18 | H22: 397.79 | I22: 266.992 | J22: 253.914 | K22: 131.836 | L22: 27 | M22: 1988.95 | N22: 2669.92 | O22: 3808.71 | P22: 3356.1 | Q22: 3329.1 | R22: 4467.89 | S22: 3835.71 | T22: 3988.28 | U22: 2669.92
C23: 6 nights | D23: 2381.34 | E23: 1596.56 | F23: 1518.08 | G23: 785.62 | H23: 396.89 | I23: 266.0933333 | J23: 253.0133333 | K23: 130.9366667 | L23: 27 | M23: 2381.34 | N23: 3193.12 | O23: 4554.24 | P23: 4005.74 | Q23: 3978.74 | R23: 5339.86 | S23: 4581.24 | T23: 4764.36 | U23: 3193.12
C24: 7 nights | D24: 2773.74 | E24: 1858.15 | F24: 1766.59 | G24: 912.06 | H24: 396.2485714 | I24: 265.45 | J24: 252.37 | K24: 130.2942857 | L24: 27 | M24: 2773.74 | N24: 3716.3 | O24: 5299.77 | P24: 4655.36 | Q24: 4628.36 | R24: 6211.83 | S24: 5326.77 | T24: 5540.42 | U24: 3716.3
B25: Pool Junior Swim-up Suite Shared round-trip transfers included | C25: 3 nights | D25: 1239.84 | E25: 835.56 | F25: 795.13 | G25: 417.8 | H25: 413.28 | I25: 278.52 | J25: 265.0433333 | K25: 139.2666667 | L25: 27 | M25: 1239.84 | N25: 1671.12 | O25: 2385.39 | P25: 2115.92 | Q25: 2088.92 | R25: 2803.19 | S25: 2412.39 | T25: 2506.72 | U25: 1671.12
C26: 4 nights | D26: 1644.13 | E26: 1105.08 | F26: 1051.18 | G26: 548.07 | H26: 411.0325 | I26: 276.27 | J26: 262.795 | K26: 137.0175 | L26: 27 | M26: 1644.13 | N26: 2210.16 | O26: 3153.54 | P26: 2785.23 | Q26: 2758.23 | R26: 3701.61 | S26: 3180.54 | T26: 3306.3 | U26: 2210.16
C27: 5 nights | D27: 2048.4 | E27: 1374.6 | F27: 1307.22 | G27: 678.34 | H27: 409.68 | I27: 274.92 | J27: 261.444 | K27: 135.668 | L27: 27 | M27: 2048.4 | N27: 2749.2 | O27: 3921.66 | P27: 3454.54 | Q27: 3427.54 | R27: 4600 | S27: 3948.66 | T27: 4105.88 | U27: 2749.2
C28: 6 nights | D28: 2452.68 | E28: 1644.12 | F28: 1563.27 | G28: 808.61 | H28: 408.78 | I28: 274.02 | J28: 260.545 | K28: 134.7683333 | L28: 27 | M28: 2452.68 | N28: 3288.24 | O28: 4689.81 | P28: 4123.85 | Q28: 4096.85 | R28: 5498.42 | S28: 4716.81 | T28: 4905.46 | U28: 3288.24
C29: 7 nights | D29: 2856.97 | E29: 1913.64 | F29: 1819.31 | G29: 938.87 | H29: 408.1385714 | I29: 273.3771429 | J29: 259.9014286 | K29: 134.1242857 | L29: 27 | M29: 2856.97 | N29: 3827.28 | O29: 5457.93 | P29: 4793.15 | Q29: 4766.15 | R29: 6396.8 | S29: 5484.93 | T29: 5705.02 | U29: 3827.28
B30: Family Suite Shared round-trip transfers included | C30: 3 nights | D30: 1311.19 | E30: 883.12 | F30: 840.32 | G30: 440.79 | H30: 437.0633333 | I30: 294.3733333 | J30: 280.1066667 | K30: 146.93 | L30: 27 | M30: 1311.19 | N30: 1766.24 | O30: 2520.96 | P30: 2234.03 | Q30: 2207.03 | R30: 2961.75 | S30: 2547.96 | T30: 2647.82 | U30: 1766.24
C31: 4 nights | D31: 1739.25 | E31: 1168.5 | F31: 1111.42 | G31: 578.72 | H31: 434.8125 | I31: 292.125 | J31: 277.855 | K31: 144.68 | L31: 27 | M31: 1739.25 | N31: 2337 | O31: 3334.26 | P31: 2942.72 | Q31: 2915.72 | R31: 3912.98 | S31: 3361.26 | T31: 3494.44 | U31: 2337
C32: 5 nights | D32: 2167.31 | E32: 1453.88 | F32: 1382.53 | G32: 716.66 | H32: 433.462 | I32: 290.776 | J32: 276.506 | K32: 143.332 | L32: 27 | M32: 2167.31 | N32: 2907.76 | O32: 4147.59 | P32: 3651.42 | Q32: 3624.42 | R32: 4864.25 | S32: 4174.59 | T32: 4341.08 | U32: 2907.76
C33: 6 nights | D33: 2595.37 | E33: 1739.24 | F33: 1653.64 | G33: 854.59 | H33: 432.5616667 | I33: 289.8733333 | J33: 275.6066667 | K33: 142.4316667 | L33: 27 | M33: 2595.37 | N33: 3478.48 | O33: 4960.92 | P33: 4360.07 | Q33: 4333.07 | R33: 5815.51 | S33: 4987.92 | T33: 5187.66 | U33: 3478.48
C34: 7 nights | D34: 3023.44 | E34: 2024.62 | F34: 1924.74 | G34: 992.52 | H34: 431.92 | I34: 289.2314286 | J34: 274.9628571 | K34: 141.7885714 | L34: 27 | M34: 3023.44 | N34: 4049.24 | O34: 5774.22 | P34: 5068.76 | Q34: 5041.76 | R34: 6766.74 | S34: 5801.22 | T34: 6034.28 | U34: 4049.24
B35: Two Story Rooftop Terrace Suite with Plunge Pool Shared round-trip transfers included | C35: 3 nights | D35: 1382.53 | E35: 930.69 | F35: 885.5 | G35: 463.78 | H35: 460.8433333 | I35: 310.23 | J35: 295.1666667 | K35: 154.5933333 | L35: 27 | M35: 1382.53 | N35: 1861.38 | O35: 2656.5 | P35: 2352.16 | Q35: 2325.16 | R35: 3120.28 | S35: 2683.5 | T35: 2788.94 | U35: 1861.38
C36: 4 nights | D36: 1834.37 | E36: 1231.92 | F36: 1171.67 | G36: 609.38 | H36: 458.5925 | I36: 307.98 | J36: 292.9175 | K36: 152.345 | L36: 27 | M36: 1834.37 | N36: 2463.84 | O36: 3515.01 | P36: 3100.22 | Q36: 3073.22 | R36: 4124.39 | S36: 3542.01 | T36: 3682.6 | U36: 2463.84
C37: 5 nights | D37: 2286.22 | E37: 1533.14 | F37: 1457.84 | G37: 754.97 | H37: 457.244 | I37: 306.628 | J37: 291.568 | K37: 150.994 | L37: 27 | M37: 2286.22 | N37: 3066.28 | O37: 4373.52 | P37: 3848.25 | Q37: 3821.25 | R37: 5128.49 | S37: 4400.52 | T37: 4576.22 | U37: 3066.28
C38: 6 nights | D38: 2738.06 | E38: 1834.38 | F38: 1744 | G38: 900.56 | H38: 456.3433333 | I38: 305.73 | J38: 290.6666667 | K38: 150.0933333 | L38: 27 | M38: 2738.06 | N38: 3668.76 | O38: 5232 | P38: 4596.32 | Q38: 4569.32 | R38: 6132.56 | S38: 5259 | T38: 5469.88 | U38: 3668.76
C39: 7 nights | D39: 3189.9 | E39: 2135.6 | F39: 2030.17 | G39: 1046.16 | H39: 455.7 | I39: 305.0857143 | J39: 290.0242857 | K39: 149.4514286 | L39: 27 | M39: 3189.9 | N39: 4271.2 | O39: 6090.51 | P39: 5344.36 | Q39: 5317.36 | R39: 7136.67 | S39: 6117.51 | T39: 6363.52 | U39: 4271.2
B40: Pool Family Suite Shared round-trip transfers included | C40: 3 nights | D40: 1489.54 | E40: 1002.03 | F40: 953.28 | G40: 498.26 | H40: 496.5133333 | I40: 334.01 | J40: 317.76 | K40: 166.0866667 | L40: 27 | M40: 1489.54 | N40: 2004.06 | O40: 2859.84 | P40: 2529.32 | Q40: 2502.32 | R40: 3358.1 | S40: 2886.84 | T40: 3000.58 | U40: 2004.06
C41: 4 nights | D41: 1977.06 | E41: 1327.04 | F41: 1262.04 | G41: 655.36 | H41: 494.265 | I41: 331.76 | J41: 315.51 | K41: 163.84 | L41: 27 | M41: 1977.06 | N41: 2654.08 | O41: 3786.12 | P41: 3336.44 | Q41: 3309.44 | R41: 4441.48 | S41: 3813.12 | T41: 3964.8 | U41: 2654.08
C42: 5 nights | D42: 2464.57 | E42: 1652.05 | F42: 1570.8 | G42: 812.44 | H42: 492.914 | I42: 330.41 | J42: 314.16 | K42: 162.488 | L42: 27 | M42: 2464.57 | N42: 3304.1 | O42: 4712.4 | P42: 4143.54 | Q42: 4116.54 | R42: 5524.84 | S42: 4739.4 | T42: 4928.98 | U42: 3304.1
C43: 6 nights | D43: 2952.09 | E43: 1977.06 | F43: 1879.56 | G43: 969.53 | H43: 492.015 | I43: 329.51 | J43: 313.26 | K43: 161.5883333 | L43: 27 | M43: 2952.09 | N43: 3954.12 | O43: 5638.68 | P43: 4950.65 | Q43: 4923.65 | R43: 6608.21 | S43: 5665.68 | T43: 5893.18 | U43: 3954.12
C44: 7 nights | D44: 3439.61 | E44: 2302.07 | F44: 2188.31 | G44: 1126.62 | H44: 491.3728571 | I44: 328.8671429 | J44: 312.6157143 | K44: 160.9457143 | L44: 27 | M44: 3439.61 | N44: 4604.14 | O44: 6564.93 | P44: 5757.76 | Q44: 5730.76 | R44: 7691.55 | S44: 6591.93 | T44: 6857.38 | U44: 4604.14
B45: Excellence Club Junior Suite Oceanfront Shared round-trip transfers included | C45: 3 nights | D45: 1204.17 | E45: 811.78 | F45: N/A | G45: N/A | H45: 401.39 | I45: 270.5933333 | J45: N/A | K45: N/A | L45: N/A | M45: 1204.17 | N45: 1623.56 | O45: N/A | P45: N/A | Q45: N/A | R45: N/A | S45: N/A | T45: N/A | U45: N/A
C46: 4 nights | D46: 1596.56 | E46: 1073.38 | F46: N/A | G46: N/A | H46: 399.14 | I46: 268.345 | J46: N/A | K46: N/A | L46: N/A | M46: 1596.56 | N46: 2146.76 | O46: N/A | P46: N/A | Q46: N/A | R46: N/A | S46: N/A | T46: N/A | U46: N/A
C47: 5 nights | D47: 1988.95 | E47: 1334.96 | F47: N/A | G47: N/A | H47: 397.79 | I47: 266.992 | J47: N/A | K47: N/A | L47: N/A | M47: 1988.95 | N47: 2669.92 | O47: N/A | P47: N/A | Q47: N/A | R47: N/A | S47: N/A | T47: N/A | U47: N/A
C48: 6 nights | D48: 2381.34 | E48: 1596.56 | F48: N/A | G48: N/A | H48: 396.89 | I48: 266.0933333 | J48: N/A | K48: N/A | L48: N/A | M48: 2381.34 | N48: 3193.12 | O48: N/A | P48: N/A | Q48: N/A | R48: N/A | S48: N/A | T48: N/A | U48: N/A
C49: 7 nights | D49: 2773.74 | E49: 1858.15 | F49: N/A | G49: N/A | H49: 396.2485714 | I49: 265.45 | J49: N/A | K49: N/A | L49: N/A | M49: 2773.74 | N49: 3716.3 | O49: N/A | P49: N/A | Q49: N/A | R49: N/A | S49: N/A | T49: N/A | U49: N/A
B50: Excellence Club Pool Junior Swim-Up Suite Shared round-trip transfers included | C50: 3 nights | D50: 1311.19 | E50: 883.12 | F50: N/A | G50: N/A | H50: 437.0633333 | I50: 294.3733333 | J50: N/A | K50: N/A | L50: N/A | M50: 1311.19 | N50: 1766.24 | O50: N/A | P50: N/A | Q50: N/A | R50: N/A | S50: N/A | T50: N/A | U50: N/A
C51: 4 nights | D51: 1739.25 | E51: 1168.5 | F51: N/A | G51: N/A | H51: 434.8125 | I51: 292.125 | J51: N/A | K51: N/A | L51: N/A | M51: 1739.25 | N51: 2337 | O51: N/A | P51: N/A | Q51: N/A | R51: N/A | S51: N/A | T51: N/A | U51: N/A
C52: 5 nights | D52: 2167.31 | E52: 1453.88 | F52: N/A | G52: N/A | H52: 433.462 | I52: 290.776 | J52: N/A | K52: N/A | L52: N/A | M52: 2167.31 | N52: 2907.76 | O52: N/A | P52: N/A | Q52: N/A | R52: N/A | S52: N/A | T52: N/A | U52: N/A
C53: 6 nights | D53: 2595.37 | E53: 1739.24 | F53: N/A | G53: N/A | H53: 432.5616667 | I53: 289.8733333 | J53: N/A | K53: N/A | L53: N/A | M53: 2595.37 | N53: 3478.48 | O53: N/A | P53: N/A | Q53: N/A | R53: N/A | S53: N/A | T53: N/A | U53: N/A
C54: 7 nights | D54: 3023.44 | E54: 2024.62 | F54: N/A | G54: N/A | H54: 431.92 | I54: 289.2314286 | J54: N/A | K54: N/A | L54: N/A | M54: 3023.44 | N54: 4049.24 | O54: N/A | P54: N/A | Q54: N/A | R54: N/A | S54: N/A | T54: N/A | U54: N/A
